bitfinex/quotes_SOLUSD_20250413
["timestamp","ask_amount","ask_price","bid_price","bid_amount"]
[1744518667641,16.24301184,131.75,131.71,2.828241]
[1744518668657,16.24301184,131.75,131.7,22.32061184]
[1744518669270,81.0,131.77,131.71,8.65251184]
[1744518669571,8.65251184,131.76,131.71,8.65251184]
[1744518669934,8.65251184,131.75,131.7,22.32061184]
[1744518670256,8.65251184,131.74,131.69,16.24581184]
[1744518670436,8.65251184,131.73,131.68,23.22941184]
[1744518670939,8.65251184,131.73,131.69,2.82998012]
[1744518671177,8.65251184,131.72,131.69,2.82998012]
[1744518671356,16.24451184,131.72,131.69,2.82998012]
[1744518672159,16.24451184,131.72,131.68,7.6571]
[1744518673742,16.24451184,131.72,131.69,2.83163793]
[1744518673943,16.24401184,131.73,131.69,2.83163793]
[1744518674569,16.24401184,131.73,131.68,16.30961184]
[1744518675383,0.03,131.8,131.74,26.0]
[1744518675668,0.03,131.8,131.79,8.65251184]
[1744518675965,0.03,131.8,131.79,8.93683498]
[1744518676470,0.03,131.8,131.79,35.69908384]
[1744518676767,0.03,131.8,131.79,38.52614632]
[1744518677170,0.03,131.8,131.79,40.80677981]
[1744518677369,0.03,131.8,131.79,49.43595018]
[1744518677544,0.03,131.8,131.79,57.02375018]
[1744518678163,0.03,131.8,131.79,53.23552855]
[1744518681474,0.03,131.8,131.79,34.58587969]
[1744518682863,0.03,131.8,131.79,31.75881721]
[1744518684055,0.03,131.8,131.79,29.47818372]
[1744518686847,0.03,131.8,131.79,29.19386058]
[1744518687171,0.03,131.8,131.79,21.08126058]
[1744518694957,0.03,131.8,131.79,21.36558372]
[1744518699355,0.03,131.8,131.79,16.50974802]
[1744518699779,0.03,131.8,131.79,7.87212314]
[1744518699955,0.03,131.8,131.79,16.50974802]
[1744518700481,0.03,131.8,131.79,16.22542488]
[1744518700675,0.03,131.8,131.79,7.5878]
[1744518700976,8.66762488,131.8,131.73,6.9]
[1744518701275,8.63762488,131.78,131.73,6.9]
[1744518701475,8.63762488,131.78,131.73,15.53762488]
[1744518702057,8.63762488,131.78,131.74,7.5905]
[1744518703280,13.51244261,131.78,131.74,7.5905]
[1744518704489,13.51244261,131.75,131.69,7.5935]
[1744518704685,13.51244261,131.73,131.69,7.5935]
[1744518705058,13.51244261,131.73,131.68,6.963]
[1744518705059,13.51244261,131.72,131.68,7.6569]
[1744518705256,13.51244261,131.73,131.68,21.16934261]
[1744518705459,13.51244261,131.74,131.69,13.51244261]
[1744518705673,81.14216157,131.75,131.68,7.6569]
[1744518705981,13.51244261,131.74,131.69,13.51244261]
[1744518706181,13.51244261,131.74,131.7,7.593]
[1744518706382,13.51244261,131.73,131.7,7.593]
[1744518707185,13.51244261,131.73,131.69,7.5935]
[1744518707389,13.51244261,131.73,131.68,7.657]
[1744518707678,13.51244261,131.72,131.68,7.657]
[1744518708177,0.14216157,131.71,131.68,0.063]
[1744518708379,13.51244261,131.71,131.68,0.063]
[1744518709582,13.51244261,131.7,131.68,0.063]
[1744518709772,13.51244261,131.69,131.68,0.063]
[1744518710088,13.65460418,131.69,131.68,0.063]
[1744518710457,0.14216157,131.69,131.68,0.063]
[1744518710656,81.0,131.73,131.68,13.57544261]
[1744518710860,81.0,131.73,131.7,13.51244261]
[1744518711483,81.0,131.73,131.69,21.10574261]
[1744518713382,13.51244261,131.72,131.68,0.063]
[1744518713685,13.51244261,131.7,131.68,0.063]
[1744518714686,13.51244261,131.69,131.68,0.063]
[1744518715874,13.65460418,131.7,131.68,0.063]
[1744518716371,13.51244261,131.69,131.68,0.063]
[1744518717871,21.24810418,131.69,131.68,0.063]
[1744518718078,13.65460418,131.69,131.68,0.063]
[1744518718800,0.14216157,131.69,131.68,0.063]
[1744518720281,21.24810418,131.69,131.68,0.063]
[1744518722194,40.18207618,131.69,131.68,0.063]
[1744518722395,45.07613357,131.67,131.66,0.063]
[1744518722690,58.58857618,131.67,131.66,0.063]
[1744518724377,66.18327618,131.67,131.66,0.063]
[1744518725078,0.14216157,131.67,131.66,0.063]
[1744518725286,26.0,131.67,131.66,0.063]
[1744518725479,39.51244261,131.68,131.66,0.063]
[1744518725673,13.51244261,131.67,131.66,0.063]
[1744518726774,40.18327618,131.67,131.66,0.063]
[1744518726973,40.18327618,131.67,131.65,0.063]
[1744518727190,25.17003357,131.65,131.64,0.063]
[1744518727374,38.68247618,131.65,131.64,0.063]
[1744518727574,0.14216157,131.65,131.64,0.063]
[1744518727881,32.58857618,131.65,131.64,0.063]
[1744518728089,32.58857618,131.65,131.63,0.063]
[1744518728290,73.92937618,131.63,131.62,0.063]
[1744518729182,19.07613357,131.62,131.61,0.063]
[1744518729380,32.58857618,131.62,131.61,0.063]
[1744518730381,40.18617618,131.62,131.61,0.063]
[1744518733697,47.10617618,131.62,131.6,0.063]
[1744518733880,13.65460418,131.61,131.6,0.063]
[1744518734080,32.58857618,131.61,131.6,0.063]
[1744518734281,46.10101879,131.61,131.6,0.063]
[1744518734578,52.32988813,131.61,131.6,0.063]
[1744518734878,52.32988813,131.61,131.57,0.063]
[1744518735093,13.51244261,131.56,131.55,0.063]
[1744518735285,20.43244261,131.56,131.55,0.063]
[1744518735992,28.03344261,131.56,131.55,0.063]
[1744518736185,47.10957618,131.56,131.55,0.063]
[1744518736596,0.14216157,131.55,131.54,0.063]
[1744518736793,13.65460418,131.55,131.54,0.063]
[1744518737678,6.92,131.55,131.54,0.063]
[1744518738301,21.11344261,131.56,131.54,0.063]
[1744518738503,20.57460418,131.55,131.54,0.063]
[1744518738688,39.50857618,131.55,131.54,0.063]
[1744518740089,47.11017618,131.55,131.54,0.063]
[1744518741008,69.87017618,131.55,131.54,0.063]
[1744518741201,47.11017618,131.55,131.54,0.063]
[1744518741400,0.14216157,131.51,131.49,0.063]
[1744518741702,20.57460418,131.5,131.49,0.063]
[1744518741889,39.50857618,131.5,131.49,0.063]
[1744518742289,47.11307618,131.5,131.49,0.063]
[1744518742703,26.14216157,131.48,131.47,0.063]
[1744518742902,39.65460418,131.48,131.47,0.063]
[1744518743102,46.57460418,131.48,131.47,0.063]
[1744518743513,54.18030418,131.48,131.47,0.063]
[1744518743909,73.11427618,131.48,131.47,0.063]
[1744518744089,73.11427618,131.48,131.42,7.8276]
[1744518744295,13.51244261,131.43,131.38,7.8276]
[1744518744497,20.43244261,131.42,131.38,7.8276]
[1744518745014,20.43244261,131.42,131.38,21.34004261]
[1744518745015,6.92,131.42,131.38,21.34004261]
[1744518745213,6.92,131.42,131.38,28.95154261]
[1744518746695,6.92,131.42,131.39,13.51244261]
[1744518746908,20.43244261,131.44,131.38,47.98024261]
[1744518748113,13.51244261,131.42,131.38,15.4391]
[1744518749013,13.51244261,131.43,131.38,28.95154261]
[1744518749221,20.43244261,131.44,131.39,13.51244261]
[1744518749714,13.51244261,131.43,131.38,28.95154261]
[1744518749911,13.51244261,131.42,131.38,15.4391]
[1744518751421,14.5281,131.44,131.38,15.4391]
[1744518751624,13.51244261,131.42,131.38,15.4391]
[1744518755604,6.92,131.43,131.38,15.4391]
[1744518756027,20.43244261,131.43,131.38,15.4391]
[1744518756728,13.51244261,131.42,131.38,15.4391]
[1744518756924,13.51244261,131.42,131.38,9.2154]
[1744518757622,6.92,131.42,131.38,9.2154]
[1744518758301,13.51244261,131.43,131.38,9.2154]
[1744518758506,6.92,131.42,131.38,9.2154]
[1744518760327,13.51244261,131.43,131.38,22.72784261]
[1744518760536,20.43244261,131.43,131.38,22.72784261]
[1744518760707,13.51244261,131.42,131.38,9.2154]
[1744518763527,20.43244261,131.43,131.38,22.72784261]
[1744518763736,6.92,131.43,131.39,13.51244261]
[1744518764029,20.43244261,131.43,131.38,22.72784261]
[1744518764715,6.92,131.43,131.38,22.72784261]
[1744518765036,20.43244261,131.44,131.38,22.72784261]
[1744518768013,13.51244261,131.46,131.41,13.51244261]
[1744518768223,20.43244261,131.46,131.4,19.75424261]
[1744518768428,13.51244261,131.45,131.4,19.75424261]
[1744518769220,13.51244261,131.45,131.41,7.6097]
[1744518771425,8.69068664,131.45,131.41,7.6097]
[1744518772933,14.5269,131.46,131.41,16.30038664]
[1744518772934,8.69068664,131.46,131.41,16.30038664]
[1744518773127,96.61068664,131.47,131.42,8.69068664]
[1744518773322,104.21698664,131.47,131.41,7.6097]
[1744518773529,104.21698664,131.47,131.42,8.69068664]
[1744518773724,8.69068664,131.43,131.4,6.2418]
[1744518774033,8.69068664,131.42,131.38,1.6039]
[1744518774238,8.69068664,131.41,131.38,1.6039]
[1744518776622,8.69068664,131.39,131.36,1.596]
[1744518777647,16.30158664,131.39,131.36,1.596]
[1744518777847,8.69068664,131.38,131.36,1.596]
[1744518778025,8.69068664,131.37,131.33,0.063]
[1744518778214,8.69068664,131.38,131.33,16.36808664]
[1744518778421,16.30108664,131.4,131.34,8.69068664]
[1744518778622,8.69068664,131.4,131.35,8.69068664]
[1744518779236,88.6099,131.41,131.35,7.6128]
[1744518779537,13.59013968,131.4,131.35,21.20293968]
[1744518780618,94.59013968,131.41,131.36,20.01263968]
[1744518780823,13.59013968,131.4,131.36,6.4225]
[1744518781024,13.59013968,131.37,131.33,6.4855]
[1744518781324,13.59013968,131.35,131.33,0.063]
[1744518781641,7.6121,131.37,131.33,0.063]
[1744518781642,13.59013968,131.34,131.33,0.063]
[1744518781948,13.59013968,131.35,131.33,0.063]
[1744518782243,13.59013968,131.34,131.33,0.063]
[1744518782449,13.59013968,131.34,131.32,0.063]
[1744518782450,6.29756157,131.33,131.21,6.4225]
[1744518782657,0.14216157,131.25,131.2,71.19452571]
[1744518782959,26.0,131.24,131.2,71.19452571]
[1744518783123,32.38195011,131.23,131.22,3.24461244]
[1744518783322,40.00215011,131.23,131.22,1.02061184]
[1744518783524,44.79181043,131.21,131.2,71.19452571]
[1744518783717,58.38195011,131.21,131.2,31.15082483]
[1744518783946,58.38195011,131.21,131.18,17.36647768]
[1744518784254,13.59013968,131.19,131.18,17.36647768]
[1744518785250,32.66627325,131.19,131.18,17.36647768]
[1744518785448,55.46285708,131.19,131.18,17.36647768]
[1744518786247,47.84035708,131.19,131.18,17.36647768]
[1744518786453,18.79181043,131.18,131.11,15.6277]
[1744518786620,18.79181043,131.18,131.11,37.45624665]
[1744518786824,7.22,131.19,131.13,21.82854665]
[1744518787019,29.04854665,131.19,131.13,21.82854665]
[1744518787445,21.82854665,131.18,131.13,21.82854665]
[1744518787639,7.22,131.19,131.14,22.11286979]
[1744518787843,15.41343709,131.18,131.17,21.82854665]
[1744518788252,15.41343709,131.18,131.17,40.76251865]
[1744518788732,7.22,131.28,131.18,0.42648471]
[1744518788932,29.04854665,131.28,131.22,21.82854665]
[1744518789139,7.22,131.28,131.24,21.82854665]
[1744518789341,21.82854665,131.29,131.24,21.82854665]
[1744518789742,20.60205484,131.27,131.24,21.82854665]
[1744518789935,20.60205484,131.27,131.23,21.82854665]
[1744518790251,47.82854665,131.24,131.17,8.1059]
[1744518790437,47.82854665,131.24,131.19,21.82854665]
[1744518790745,21.82854665,131.23,131.18,21.82854665]
[1744518791053,26.0,131.24,131.19,21.82854665]
[1744518791261,47.82854665,131.24,131.19,21.82854665]
[1744518791550,26.0,131.24,131.2,29.45044665]
[1744518791852,11.58611018,131.22,131.19,29.45094665]
[1744518792645,11.58611018,131.21,131.19,29.45094665]
[1744518793347,11.58611018,131.21,131.2,21.82854665]
[1744518793756,11.58611018,131.21,131.19,21.82854665]
[1744518794057,23.17404786,131.22,131.2,21.82854665]
[1744518794234,23.17404786,131.22,131.21,21.82854665]
[1744518794434,23.17404786,131.22,131.19,0.28432314]
[1744518794638,23.17404786,131.22,131.21,21.82854665]
[1744518795134,23.17404786,131.23,131.21,21.82854665]
[1744518796041,11.57447757,131.23,131.22,21.82854665]
[1744518797249,21.82854665,131.23,131.17,15.7293]
[1744518797436,21.82854665,131.23,131.17,37.55784665]
[1744518797634,21.82854665,131.21,131.16,7.6242]
[1744518798066,21.82854665,131.23,131.18,21.82854665]
[1744518798542,21.82854665,131.23,131.16,7.6242]
[1744518798855,21.82854665,131.23,131.17,21.82854665]
[1744518799254,21.82854665,131.23,131.18,21.82854665]
[1744518800058,21.82854665,131.23,131.18,29.45144665]
[1744518800245,21.82854665,131.24,131.18,29.45144665]
[1744518800435,21.82854665,131.24,131.19,21.82854665]
[1744518800638,21.82854665,131.24,131.18,29.45144665]
[1744518801440,29.44824665,131.24,131.18,29.45144665]
[1744518801642,21.82854665,131.22,131.16,7.6237]
[1744518801960,21.82854665,131.23,131.17,21.82854665]
[1744518802661,29.44874665,131.23,131.17,29.45214665]
[1744518804577,29.44874665,131.23,131.17,21.82854665]
[1744518805260,21.24874653,131.23,131.17,13.62854653]
[1744518805960,21.24834653,131.24,131.18,13.62854653]
[1744518806156,7.6198,131.24,131.18,13.62854653]
[1744518806343,21.24834653,131.24,131.18,13.62854653]
[1744518806543,21.24834653,131.24,131.18,21.25144653]
[1744518806859,21.24834653,131.24,131.18,7.6229]
[1744518807063,21.24834653,131.24,131.17,13.62854653]
[1744518807243,13.62854653,131.23,131.17,13.62854653]
[1744518808171,94.62854653,131.23,131.17,13.62854653]
[1744518808381,94.62854653,131.23,131.18,13.62854653]
[1744518808382,81.0,131.23,131.18,13.62854653]
[1744518808551,81.0,131.23,131.19,13.62854653]
[1744518809557,81.0,131.23,131.19,21.25094653]
[1744518810377,7.6173,131.28,131.22,13.62854653]
[1744518810678,7.6173,131.28,131.23,13.62854653]
[1744518810849,21.24584653,131.28,131.22,13.62854653]
[1744518811054,7.6173,131.28,131.23,13.62854653]
[1744518811471,94.65854653,131.29,131.23,13.62854653]
[1744518811472,26.0,131.26,131.23,13.62854653]
[1744518811663,81.03,131.29,131.24,13.62854653]
[1744518812167,94.65854653,131.29,131.24,13.62854653]
[1744518812376,13.62854653,131.27,131.21,7.6213]
[1744518812575,13.62854653,131.26,131.21,13.62854653]
[1744518812753,26.0,131.25,131.2,29.03124653]
[1744518813463,13.62854653,131.24,131.19,14.8424]
[1744518813665,13.62854653,131.23,131.19,7.6224]
[1744518813864,39.62854653,131.23,131.19,7.6224]
[1744518814060,39.62854653,131.23,131.15,0.063]
[1744518814061,13.62854653,131.2,131.15,0.063]
[1744518814270,13.62854653,131.18,131.15,0.063]
[1744518814679,26.0,131.19,131.15,21.31634653]
[1744518815348,26.0,131.19,131.15,29.50162724]
[1744518815783,26.0,131.19,131.15,7.6878]
[1744518816284,47.81382724,131.19,131.15,7.6878]
[1744518816446,47.81382724,131.19,131.15,0.063]
[1744518816646,47.81382724,131.19,131.15,7.6877]
[1744518816851,26.0,131.19,131.15,29.50152724]
[1744518817053,26.0,131.19,131.15,7.6877]
[1744518817472,21.81382724,131.18,131.15,0.063]
[1744518818388,26.0,131.16,131.15,0.0001]
[1744518818571,18.64964886,131.15,131.03,13.803]
[1744518818757,21.81382724,131.09,131.03,6.1713]
[1744518818955,22.44659857,131.15,131.03,13.803]
[1744518819183,0.28432314,131.14,131.05,21.81382724]
[1744518819484,18.933972,131.14,131.03,13.803]
[1744518819686,21.81382724,131.1,131.05,21.81382724]
[1744518819853,0.28432314,131.12,131.04,21.81382724]
[1744518820195,26.27564886,131.13,131.03,6.1713]
[1744518820488,21.81382724,131.08,131.03,6.1713]
[1744518820652,21.81382724,131.07,131.02,23.42352724]
[1744518821054,21.81382724,131.07,131.02,1.6097]
[1744518821254,19.07613357,131.08,131.01,2.341038]
[1744518821479,19.07613357,131.08,131.01,24.15486524]
[1744518821480,21.81382724,131.06,131.01,24.15486524]
[1744518821685,81.0,131.09,131.05,21.81382724]
[1744518821851,102.81382724,131.09,131.03,21.81382724]
[1744518822052,81.0,131.09,131.05,21.81382724]
[1744518822254,7.6267,131.12,131.03,0.14216157]
[1744518822452,29.44052724,131.12,131.07,21.81382724]
[1744518822671,29.44052724,131.12,131.03,18.79181043]
[1744518822672,21.81382724,131.11,131.06,21.81382724]
[1744518822851,21.81382724,131.1,131.05,21.81382724]
[1744518823051,21.81382724,131.09,131.02,7.91652314]
[1744518823266,47.81382724,131.08,131.03,21.81382724]
[1744518823470,7.6267,131.12,131.05,21.81382724]
[1744518823666,7.6249,131.15,131.11,21.81382724]
[1744518823872,102.81382724,131.17,131.11,21.81382724]
[1744518824070,6.1199,131.18,131.09,7.91252314]
[1744518824264,21.81382724,131.19,131.14,21.81382724]
[1744518824465,21.81382724,131.19,131.13,21.81382724]
[1744518824670,26.27154886,131.2,131.1,0.14216157]
[1744518824671,21.81382724,131.18,131.1,0.14216157]
[1744518824972,21.81382724,131.18,131.13,21.81382724]
[1744518825175,7.6229,131.19,131.13,21.81382724]
[1744518825357,7.6229,131.19,131.14,21.81382724]
[1744518825558,21.81382724,131.18,131.12,21.81382724]
[1744518825765,26.27254886,131.19,131.12,21.81382724]
[1744518825964,21.81382724,131.18,131.13,21.81382724]
[1744518826360,7.6229,131.19,131.13,21.81382724]
[1744518826569,29.43672724,131.19,131.13,21.81382724]
[1744518826765,21.81382724,131.18,131.11,7.627]
[1744518826961,21.81382724,131.17,131.12,21.81382724]
[1744518827168,21.81382724,131.18,131.12,21.81382724]
[1744518827781,29.43702724,131.18,131.11,7.627]
[1744518827984,29.43702724,131.18,131.12,21.81382724]
[1744518828278,21.81382724,131.17,131.11,7.627]
[1744518828479,21.81382724,131.17,131.12,21.81382724]
[1744518828683,29.43702724,131.18,131.12,21.81382724]
[1744518828869,26.0,131.17,131.12,21.81382724]
[1744518829579,47.81382724,131.17,131.12,21.81382724]
[1744518829775,26.0,131.17,131.12,21.81382724]
[1744518830085,26.0,131.17,131.12,29.44032724]
[1744518830272,26.0,131.17,131.14,21.81382724]
[1744518832171,26.0,131.17,131.13,0.28432314]
[1744518832381,26.0,131.17,131.13,21.81382724]
[1744518832663,26.0,131.17,131.14,21.81382724]
[1744518833774,21.81382724,131.2,131.14,29.43922724]
[1744518833973,21.81382724,131.19,131.14,7.6254]
[1744518834379,21.81382724,131.18,131.13,7.6258]
[1744518834583,47.81382724,131.18,131.13,7.6258]
[1744518834890,21.81382724,131.18,131.13,29.43962724]
[1744518835074,21.81382724,131.19,131.13,29.43962724]
[1744518836387,7.6222,131.2,131.13,29.43962724]
[1744518836585,21.81382724,131.19,131.13,29.43962724]
[1744518837166,21.81382724,131.19,131.13,7.6258]
[1744518837487,29.43632724,131.19,131.13,7.6258]
[1744518839373,26.0,131.18,131.13,7.6258]
[1744518839567,26.0,131.18,131.13,21.26223563]
[1744518839968,26.0,131.18,131.14,13.92075877]
[1744518841081,39.63643563,131.19,131.14,0.28432314]
[1744518841270,47.25893563,131.19,131.14,0.28432314]
[1744518842091,47.25893563,131.19,131.13,7.6256]
[1744518842092,13.63643563,131.18,131.13,7.6256]
[1744518842463,13.63643563,131.16,131.1,7.66]
[1744518842683,33.6225,131.19,131.08,7.7205]
[1744518842684,13.63643563,131.13,131.08,7.7205]
[1744518842883,13.63643563,131.11,131.07,7.6295]
[1744518843184,25.14644886,131.16,131.06,0.063]
[1744518843185,13.63643563,131.08,131.06,0.063]
[1744518843376,21.8563681,131.07,131.06,0.063]
[1744518843578,21.8563681,131.08,131.06,0.063]
[1744518843771,112.0995681,131.12,131.06,0.063]
[1744518843977,21.8563681,131.11,131.06,21.9193681]
[1744518844191,102.8563681,131.12,131.07,21.8563681]
[1744518844370,7.625,131.15,131.09,21.8563681]
[1744518844570,21.8563681,131.15,131.1,21.8563681]
[1744518845172,21.8563681,131.15,131.1,29.4837681]
[1744518845372,102.8563681,131.16,131.11,21.8563681]
[1744518845989,81.0,131.16,131.11,21.8563681]
[1744518846191,81.0,131.16,131.1,7.6274]
[1744518846380,102.8563681,131.16,131.11,21.8563681]
[1744518846690,81.0,131.16,131.12,21.8563681]
[1744518846995,29.4800681,131.17,131.12,21.8563681]
[1744518847180,29.4800681,131.17,131.1,7.6274]
[1744518847493,21.8563681,131.15,131.1,7.6274]
[1744518847682,29.4800681,131.17,131.11,21.8563681]
[1744518847875,21.8563681,131.17,131.12,21.8563681]
[1744518848123,21.8563681,131.18,131.13,21.8563681]
[1744518848979,21.8563681,131.18,131.13,29.4820681]
[1744518849379,29.4794681,131.18,131.13,29.4820681]
[1744518849784,21.8563681,131.18,131.13,29.4820681]
[1744518850177,29.4795681,131.18,131.13,29.4820681]
[1744518850694,21.8563681,131.17,131.12,29.4826681]
[1744518851392,21.8563681,131.16,131.09,8.0577]
[1744518851695,29.4796681,131.18,131.13,21.8563681]
[1744518852195,21.8563681,131.17,131.12,21.8563681]
[1744518852598,21.8563681,131.17,131.12,29.4826681]
[1744518853398,21.8563681,131.19,131.13,21.8563681]
[1744518853694,95.1188,131.2,131.13,21.8563681]
[1744518853900,21.8563681,131.18,131.13,21.8563681]
[1744518854489,95.1188,131.2,131.13,29.4818681]
[1744518854689,88.622,131.2,131.15,21.8563681]
[1744518854909,110.4783681,131.2,131.15,21.8563681]
[1744518855499,110.4783681,131.2,131.15,29.4810681]
[1744518855875,110.4783681,131.2,131.12,7.91092314]
[1744518856083,110.4783681,131.2,131.14,21.8563681]
[1744518857301,110.4783681,131.2,131.14,29.4813681]
[1744518858107,110.4783681,131.2,131.14,7.625]
[1744518858301,21.8563681,131.2,131.15,29.4810681]
[1744518858499,29.4770681,131.23,131.17,21.8563681]
[1744518858705,110.5061681,131.24,131.18,21.8563681]
[1744518858880,88.6498,131.24,131.19,21.8563681]
[1744518859081,81.03,131.24,131.2,21.8563681]
[1744518859286,0.03,131.24,131.2,21.8563681]
[1744518860399,0.03,131.24,131.19,29.4782681]
[1744518861107,0.03,131.24,131.2,21.8563681]
[1744518861988,0.03,131.24,131.22,21.8563681]
[1744518862513,0.03,131.24,131.22,7.6207]
[1744518863419,0.03,131.24,131.21,29.4775681]
[1744518863798,0.03,131.24,131.23,21.8563681]
[1744518864198,0.03,131.24,131.22,23.4026681]
[1744518864396,0.03,131.24,131.23,29.4765681]
[1744518864612,0.03,131.24,131.23,7.6202]
[1744518864822,0.03,131.24,131.23,29.4765681]
[1744518865326,0.03,131.24,131.23,21.51984213]
[1744518872808,0.03,131.24,131.23,7.90452314]
[1744518874212,13.64531899,131.24,131.19,1.5463]
[1744518874415,13.61531899,131.23,131.19,1.5463]
[1744518874632,0.03,131.24,131.21,13.61531899]
[1744518874913,0.03,131.24,131.23,13.75748056]
[1744518875116,0.03,131.24,131.23,32.69145256]
[1744518875812,0.03,131.29,131.24,0.28432314]
[1744518876023,0.03,131.29,131.28,13.89964213]
[1744518876224,0.03,131.29,131.28,21.6591037]
[1744518876919,0.03,131.29,131.28,40.30875256]
[1744518879534,0.03,131.29,131.28,26.69343357]
[1744518879715,0.03,131.29,131.28,40.30875256]
[1744518880429,0.0001,131.29,131.28,53.92407155]
[1744518880645,0.03,131.3,131.29,0.42648471]
[1744518880944,0.03,131.3,131.29,14.0418037]
[1744518882445,0.03,131.3,131.29,21.51634213]
[1744518882619,0.03,131.3,131.29,0.28432314]
[1744518882814,0.03,131.3,131.29,13.61531899]
[1744518883238,0.03,131.3,131.29,0.28432314]
[1744518883435,0.03,131.3,131.28,21.23231899]
[1744518883629,0.03,131.3,131.29,0.28432314]
[1744518884134,0.03,131.3,131.29,21.51634213]
[1744518886422,0.03,131.3,131.26,7.7]
[1744518886624,0.03,131.3,131.27,0.14216157]
[1744518886843,0.03,131.3,131.28,13.61531899]
[1744518887334,0.03,131.3,131.29,13.61531899]
[1744518887541,0.03,131.3,131.29,13.89964213]
[1744518888232,0.03,131.3,131.29,0.28432314]
[1744518888434,0.03,131.3,131.26,7.7]
[1744518888641,13.64531899,131.3,131.26,15.3183]
[1744518888840,13.64531899,131.3,131.26,7.6183]
[1744518890651,0.03,131.3,131.26,21.23361899]
[1744518891531,13.64531899,131.3,131.26,7.6183]
[1744518893246,0.03,131.3,131.26,7.6183]
[1744518894941,0.03,131.3,131.26,21.23361899]
[1744518896149,0.03,131.3,131.27,13.61531899]
[1744518896449,0.03,131.3,131.27,21.23291899]
[1744518896926,0.03,131.3,131.28,13.89964213]
[1744518897847,0.03,131.3,131.28,0.28432314]
[1744518898527,0.03,131.3,131.28,7.90112314]
[1744518898724,0.03,131.3,131.28,21.51644213]
[1744518898942,0.03,131.3,131.29,14.0418037]
[1744518899149,0.03,131.3,131.29,32.69145256]
[1744518900642,0.03,131.3,131.29,40.30815256]
[1744518901932,0.03,131.3,131.28,7.617]
[1744518902332,0.03,131.3,131.29,13.61531899]
[1744518902634,0.03,131.3,131.29,40.30815256]
[1744518905353,0.03,131.32,131.3,0.42648471]
[1744518905556,0.03,131.32,131.31,32.54929099]
[1744518906332,0.03,131.32,131.31,40.16479099]
[1744518907465,0.03,131.32,131.3,7.6159]
[1744518908765,0.03,131.32,131.27,7.56]
[1744518908973,13.61531899,131.31,131.27,7.56]
[1744518909135,1.5528,131.32,131.27,28.79301899]
[1744518909339,15.16811899,131.32,131.27,28.79301899]
[1744518909563,13.61531899,131.3,131.26,7.6182]
[1744518910239,13.61531899,131.3,131.25,7.6189]
[1744518910586,13.61531899,131.26,131.23,0.063]
[1744518910736,87.63656157,131.31,131.23,0.063]
[1744518910737,13.61531899,131.28,131.23,13.67831899]
[1744518910939,13.61531899,131.28,131.24,0.28432314]
[1744518911152,26.0,131.27,131.24,0.28432314]
[1744518911354,26.0,131.27,131.23,13.82048056]
[1744518911556,26.0,131.27,131.24,13.61531899]
[1744518911758,21.17531899,131.3,131.25,13.61531899]
[1744518912067,13.61531899,131.3,131.25,13.61531899]
[1744518912573,26.0,131.28,131.24,13.89964213]
[1744518912751,26.0,131.28,131.25,7.619]
[1744518914048,26.0,131.28,131.24,7.90372314]
[1744518914861,39.61531899,131.28,131.24,7.6194]
[1744518915065,13.61531899,131.26,131.23,0.063]
[1744518915267,20.10971899,131.24,131.23,0.063]
[1744518915957,27.72931899,131.24,131.23,0.063]
[1744518916368,6.4944,131.24,131.23,0.063]
[1744518916552,26.0,131.24,131.23,0.063]
[1744518917272,15.24551899,131.26,131.23,0.063]
[1744518917471,1.6302,131.26,131.23,0.063]
[1744518917860,15.24551899,131.26,131.23,0.063]
[1744518918053,1.6302,131.26,131.23,0.063]
[1744518918968,108.72761899,131.27,131.23,0.063]
[1744518918969,81.0,131.27,131.23,0.063]
[1744518919147,13.61531899,131.28,131.23,13.67831899]
[1744518919353,15.24551899,131.29,131.24,13.61531899]
[1744518919760,26.0,131.28,131.23,13.96264213]
[1744518919967,15.24551899,131.29,131.23,13.96264213]
[1744518920162,15.24551899,131.29,131.24,7.6196]
[1744518920865,13.61531899,131.27,131.23,0.063]
[1744518921079,13.61531899,131.26,131.23,0.063]
[1744518921382,13.61531899,131.27,131.23,0.063]